bitfinex/quotes_ETHUSD_20250524
["timestamp","ask_amount","ask_price","bid_price","bid_amount"]
[1748095419168,4.71455652,2545.3,2545.2,19.07267652]
[1748095419582,3.92880996,2545.3,2545.2,19.07267652]
[1748095423676,3.92880996,2545.3,2545.2,3.85667652]
[1748095423897,3.92880996,2545.3,2545.2,19.07067652]
[1748095424087,3.92880996,2545.3,2545.2,3.85667652]
[1748095424290,3.92880996,2545.3,2545.2,19.07067652]
[1748095424817,4.71455652,2545.3,2545.2,19.07067652]
[1748095425513,3.92880996,2545.3,2545.2,19.07067652]
[1748095427516,5.56930996,2545.3,2545.2,19.07067652]
[1748095427715,3.92896432,2545.2,2545.1,0.05]
[1748095429476,4.29376939,2545.2,2545.1,0.05]
[1748095430012,4.29376939,2545.2,2545.1,15.265]
[1748095430423,3.92927308,2545.0,2544.9,3.85667652]
[1748095430582,3.92927308,2545.0,2544.9,19.07167652]
[1748095431185,3.92927308,2545.0,2544.9,27.07167652]
[1748095432096,3.92927308,2545.0,2544.9,23.215]
[1748095432303,3.92927308,2545.0,2544.9,27.07167652]
[1748095438690,3.92919399,2545.1,2545.0,8.0]
[1748095439590,3.61488302,2545.1,2545.0,8.0]
[1748095441701,3.61488302,2545.1,2545.0,11.6996183]
[1748095443648,3.61488302,2545.1,2545.0,21.62780915]
[1748095444001,3.61488302,2545.1,2545.0,25.06580915]
[1748095445223,3.61488302,2545.1,2545.0,26.9156183]
[1748095446302,3.61488302,2545.1,2545.0,25.06580915]
[1748095446504,3.61488302,2545.1,2545.0,26.9156183]
[1748095447024,3.61488302,2545.1,2545.0,25.06580915]
[1748095450279,7.13474931,2545.1,2545.0,25.06580915]
[1748095451599,7.13474931,2545.1,2545.0,8.0]
[1748095451804,8.24112142,2545.1,2545.0,17.06580915]
[1748095452075,8.60589967,2545.1,2545.0,25.06580915]
[1748095452893,8.24112142,2545.1,2545.0,8.53507227]
[1748095453091,8.60594743,2545.1,2545.0,23.75107227]
[1748095453442,10.13144743,2545.1,2545.0,23.75107227]
[1748095453839,10.13144743,2545.1,2545.0,23.72507227]
[1748095454040,8.17746914,2545.1,2545.0,23.72507227]
[1748095455202,7.81259573,2545.1,2545.0,23.72507227]
[1748095455345,8.17746566,2545.1,2545.0,23.72507227]
[1748095456074,7.81259573,2545.1,2545.0,23.72507227]
[1748095456296,8.17756082,2545.1,2545.0,23.72507227]
[1748095456963,5.54568817,2545.1,2545.0,23.72507227]
[1748095457649,5.18072362,2545.1,2545.0,23.72507227]
[1748095460440,1.5658406,2545.1,2545.0,37.35388142]
[1748095460687,1.5658406,2545.1,2545.0,37.84715457]
[1748095460847,1.5658406,2545.1,2545.0,37.35388142]
[1748095461185,5.49495929,2545.1,2545.0,37.35388142]
[1748095461358,1.5658406,2545.1,2545.0,37.35388142]
[1748095462569,3.53200211,2545.1,2545.0,37.35388142]
[1748095464968,5.89498317,2545.3,2545.1,8.0]
[1748095465151,5.89498317,2545.3,2545.2,1.84980915]
[1748095467075,1.96616151,2545.3,2545.2,2.08660915]
[1748095467395,1.96616151,2545.3,2545.2,10.08660915]
[1748095468368,5.89485509,2545.4,2545.3,8.0]
[1748095468576,5.89485509,2545.4,2545.2,2.08660915]
[1748095468775,3.92880996,2545.3,2545.2,2.08660915]
[1748095469316,1.96616151,2545.4,2545.2,2.08660915]
[1748095469612,3.92798595,2545.9,2545.5,8.0]
[1748095469756,3.92798595,2545.9,2545.8,1.84980915]
[1748095473797,3.92798595,2545.9,2545.8,21.62680915]
[1748095475054,3.92798595,2545.9,2545.8,20.31257241]
[1748095486105,3.92798595,2545.9,2545.8,35.48857241]
[1748095489806,6.35135807,2545.9,2545.8,8.0]
[1748095490304,3.92798595,2545.9,2545.8,9.84980915]
[1748095494781,3.92798595,2545.9,2545.8,25.02580915]
[1748095495503,3.92775515,2546.0,2545.9,8.0]
[1748095496818,4.54418688,2546.7,2545.9,22.3548823]
[1748095497124,0.61746554,2546.7,2546.6,1.84980915]
[1748095497264,0.61746554,2546.7,2546.6,36.80080915]
[1748095497465,0.61746554,2546.7,2546.6,53.75680915]
[1748095498795,0.05,2546.9,2546.7,8.0]
[1748095499200,0.05,2546.9,2546.8,1.84980915]
[1748095500366,4.64300173,2547.0,2546.9,8.0]
[1748095500570,4.64300173,2547.0,2546.9,11.92634182]
[1748095500809,7.74065205,2547.4,2546.9,11.92634182]
[1748095500810,4.59235142,2547.4,2546.9,8.0]
[1748095501019,4.58843942,2547.4,2547.3,1.84980915]
[1748095501203,0.662788,2547.4,2547.3,25.02280915]
[1748095502084,0.662788,2547.4,2547.3,28.94853442]
[1748095502284,2.0887295,2547.8,2547.7,0.2368]
[1748095502486,2.0887295,2547.8,2547.7,38.81260915]
[1748095502801,1.5288,2547.3,2546.4,0.70477057]
[1748095503127,5.45452527,2547.3,2547.2,1.84980915]
[1748095503296,6.39253669,2547.3,2547.2,17.02280915]
[1748095503499,6.39253669,2547.3,2547.2,25.02280915]
[1748095505326,6.39253669,2547.3,2547.2,25.02080915]
[1748095505900,6.39253669,2547.3,2547.2,9.84980915]
[1748095506108,6.39253669,2547.3,2547.2,25.02080915]
[1748095507152,5.44185017,2546.7,2546.6,16.953]
[1748095507435,5.44185017,2546.7,2546.6,33.97280915]
[1748095507632,3.92656948,2546.8,2546.7,8.0]
[1748095507789,3.92604298,2547.1,2546.7,9.84980915]
[1748095507992,3.92604298,2547.1,2547.0,1.84980915]
[1748095508231,4.86275706,2547.1,2547.0,9.84980915]
[1748095508430,3.92604298,2547.1,2547.0,9.84980915]
[1748095509339,1.5152,2547.8,2547.0,11.9364183]
[1748095509644,1.5152,2547.8,2547.2,8.0]
[1748095509645,3.92579855,2547.3,2547.2,8.0]
[1748095510214,1.5152,2547.8,2547.2,8.0]
[1748095510420,0.05,2547.9,2547.3,0.27605551]
[1748095510641,3.97492881,2547.9,2547.8,1.84980915]
[1748095510945,3.97492881,2547.9,2547.8,25.01980915]
[1748095511300,3.97480081,2547.9,2547.8,25.01980915]
[1748095512042,0.05,2547.9,2547.8,25.01980915]
[1748095512270,0.05,2547.9,2547.8,26.8696183]
[1748095512541,0.05,2547.9,2547.8,27.1064183]
[1748095514245,3.97480081,2547.9,2547.8,10.08660915]
[1748095514398,5.47600081,2547.9,2547.8,25.01780915]
[1748095516167,5.47600081,2547.9,2547.8,9.84980915]
[1748095516333,5.47600081,2547.9,2547.8,25.00780915]
[1748095516671,6.41606589,2547.9,2547.8,25.00780915]
[1748095519116,6.41606589,2547.9,2547.8,23.69444467]
[1748095520653,6.41606589,2547.9,2547.8,23.69344467]
[1748095523868,6.41606589,2547.9,2547.8,17.00680915]
[1748095524069,0.05,2547.9,2547.8,25.00680915]
[1748095529044,3.97480081,2547.9,2547.8,9.84980915]
[1748095529325,3.97480081,2547.9,2547.8,36.77080915]
[1748095530478,3.92250751,2549.4,2547.9,8.0]
[1748095530689,1.5449,2548.8,2548.0,0.2368]
[1748095530850,5.46834474,2548.8,2548.7,1.84980915]
[1748095531067,5.46834474,2548.8,2548.7,25.00480915]
[1748095533753,0.05,2548.9,2548.8,8.0]
[1748095533954,0.05,2548.9,2548.8,34.917]
[1748095533955,3.97328275,2548.9,2548.8,34.917]
[1748095534751,3.97328275,2548.9,2548.8,8.0]
[1748095534950,6.51411391,2548.9,2548.8,23.153]
[1748095535676,6.51411391,2548.9,2548.8,21.46495323]
[1748095536698,6.51411391,2548.9,2548.8,23.31376238]
[1748095536884,5.56998275,2548.9,2548.8,23.31376238]
[1748095538208,3.97328275,2548.9,2548.8,23.31376238]
[1748095539596,3.97328275,2548.9,2548.8,8.16176238]
[1748095539901,3.97328275,2548.9,2548.8,23.31276238]
[1748095540258,3.97328275,2548.9,2548.8,8.16176238]
[1748095540454,3.97328275,2548.9,2548.8,35.07576238]
[1748095540659,3.97328275,2548.9,2548.8,33.76297034]
[1748095541963,3.97328275,2548.9,2548.8,4.99916119]
[1748095542161,3.97328275,2548.9,2548.8,33.76297034]
[1748095543202,3.97328275,2548.9,2548.8,33.99977034]
[1748095543605,3.97328275,2548.9,2548.8,7.08577034]
[1748095543903,3.97328275,2548.9,2548.8,33.76197034]
[1748095544101,0.05,2548.9,2548.8,33.76197034]
[1748095544408,4.64300173,2549.7,2549.0,3.92305346]
[1748095544591,4.64300173,2549.7,2549.6,2.08660915]
[1748095544900,2.55427223,2549.7,2549.6,38.8434183]
[1748095545100,2.55427223,2549.7,2549.6,38.13733829]
[1748095545307,0.05,2549.9,2549.7,8.0]
[1748095545503,7.06975653,2550.1,2549.9,8.0]
[1748095545709,7.06975653,2550.1,2550.0,21.60980915]
[1748095545867,3.14830063,2550.1,2550.0,21.60980915]
[1748095546069,3.73860699,2550.4,2550.1,8.0]
[1748095546311,7.65956056,2550.4,2550.3,8.2368]
[1748095546497,7.65956056,2550.4,2550.3,35.1388]
[1748095546666,3.73860699,2550.4,2550.3,35.1388]
[1748095547327,3.73860699,2550.4,2550.3,8.2368]
[1748095547807,3.73860699,2550.4,2550.3,12.06754175]
[1748095547966,3.73860699,2550.4,2550.3,38.96954175]
[1748095548667,3.73860699,2550.4,2549.4,0.49197049]
[1748095548991,3.73860699,2550.4,2549.2,0.86152231]
[1748095548992,3.92156862,2550.0,2549.6,43.828]
[1748095549199,3.92145202,2550.1,2549.9,11.83074175]
[1748095549407,3.92145202,2550.1,2549.9,3.83074175]
[1748095549706,0.05,2550.9,2549.9,3.83074175]
[1748095549707,1.6963,2550.9,2549.9,3.83074175]
[1748095549934,3.92134136,2550.2,2549.7,8.2368]
[1748095550293,3.92141484,2550.1,2549.9,8.0]
[1748095550781,3.92132638,2550.2,2549.9,8.0]
[1748095550980,3.92132638,2550.2,2550.1,11.83074175]
[1748095551929,3.92132638,2550.2,2550.1,38.72774175]
[1748095552220,3.92132638,2550.2,2550.1,11.83074175]
[1748095552429,3.92132638,2550.2,2550.1,38.72574175]
[1748095552740,3.92132638,2550.2,2550.1,11.83074175]
[1748095553035,4.70557115,2550.2,2550.1,38.72374175]
[1748095554448,4.70557115,2550.2,2550.1,37.03695467]
[1748095554735,4.70557115,2550.2,2550.1,25.28095467]
[1748095555029,3.92203004,2549.7,2549.6,16.931]
[1748095555232,3.92158476,2550.0,2549.7,8.0]
[1748095555434,3.92064612,2550.6,2549.8,0.2368]
[1748095555733,3.92103961,2550.4,2549.8,0.7174611]
[1748095555939,3.92075724,2550.6,2549.9,0.55]
[1748095556139,3.92081624,2550.5,2550.1,8.0]
[1748095556338,3.92081624,2550.5,2550.4,3.83074175]
[1748095557000,3.92075224,2550.6,2550.4,11.83074175]
[1748095557243,3.92079984,2550.5,2550.4,11.83074175]
[1748095558364,0.05,2550.9,2550.5,8.0]
[1748095558571,3.92059265,2550.7,2550.6,24.927]
[1748095558766,0.05,2550.9,2550.8,4.47033871]
[1748095558983,0.05,2550.9,2550.8,34.89]
[1748095559855,0.05,2550.9,2550.8,8.0]
[1748095560050,0.05,2550.9,2550.8,38.81033871]
[1748095560247,0.05,2550.9,2550.8,34.89]
[1748095560436,3.91950587,2551.4,2550.9,8.7868]
[1748095560722,3.91950587,2551.4,2551.3,8.0]
[1748095560922,3.91950587,2551.4,2551.3,23.133]
[1748095561368,3.91941679,2551.4,2551.3,15.133]
[1748095561666,3.91941679,2551.4,2551.3,23.133]
[1748095561827,3.91941679,2551.4,2551.3,23.673]
[1748095561828,6.2439861,2551.4,2551.3,23.673]
[1748095562028,6.2439861,2551.4,2551.3,15.673]
[1748095562339,6.2439861,2551.4,2551.3,23.673]
[1748095562555,6.2439861,2551.4,2551.3,8.0]
[1748095562956,1.5407,2551.0,2550.6,16.927]
[1748095563254,3.92049241,2550.7,2550.6,24.927]
[1748095563460,3.92049241,2550.7,2550.6,52.353]
[1748095564660,3.92049241,2550.7,2550.6,24.927]
[1748095564860,3.92049241,2550.7,2550.6,52.351]
[1748095566372,3.92049241,2550.7,2550.6,24.927]
[1748095566678,3.92049241,2550.7,2550.6,52.351]
[1748095566966,4.70457699,2550.7,2550.6,40.599]
[1748095567367,4.70457699,2550.7,2550.6,24.927]
[1748095567619,4.70457699,2550.7,2550.6,40.599]
[1748095567992,1.6159,2551.7,2550.8,0.55]
[1748095568322,3.91967997,2551.3,2551.2,8.0]
[1748095568621,3.91967997,2551.3,2551.2,23.672]
[1748095568988,3.91944345,2551.4,2551.2,23.672]
[1748095569190,3.91957041,2551.3,2551.2,23.672]
[1748095569735,3.91972405,2551.2,2551.1,3.83074175]
[1748095569939,3.91972405,2551.2,2551.1,39.25374175]
[1748095570109,3.91972405,2551.2,2551.1,37.56704742]
[1748095570312,3.91972405,2551.2,2551.1,11.83074175]
[1748095570512,4.7036535,2551.2,2551.1,8.0]
[1748095570809,6.3341535,2551.2,2551.1,23.671]
[1748095571428,4.7036535,2551.2,2551.1,23.671]
[1748095571629,4.7036535,2551.2,2551.1,27.50174175]
[1748095572697,4.7036535,2551.2,2551.1,23.671]
[1748095573436,4.7036535,2551.2,2551.1,8.0]
[1748095573613,3.91972405,2551.2,2551.1,23.67]
[1748095576545,3.91963753,2551.3,2551.2,8.0]
[1748095576941,3.91949287,2551.4,2551.2,8.0]
[1748095577148,3.91957041,2551.3,2551.2,8.0]
[1748095577344,4.70348113,2551.3,2550.7,8.0]
[1748095577555,4.70348113,2551.3,2550.6,16.927]
[1748095577556,3.91987769,2551.1,2551.0,8.0]
[1748095579929,5.36457769,2551.1,2551.0,8.0]
[1748095580342,5.36457769,2551.1,2551.0,23.67]
[1748095580910,5.36457769,2551.1,2550.9,3.83074175]
[1748095580911,3.92003136,2551.0,2550.9,3.83074175]
[1748095581110,5.24046676,2551.0,2550.9,19.50074175]
[1748095581350,5.24046676,2551.0,2550.9,27.50074175]
[1748095582353,5.24046676,2551.0,2550.9,11.83074175]
[1748095582525,5.24046676,2551.0,2550.9,27.50074175]
[1748095582723,5.24046676,2551.0,2550.9,8.0]
[1748095583045,5.24046676,2551.0,2550.9,23.67]
[1748095583633,6.79761981,2551.0,2550.9,23.67]
[1748095586164,7.16329719,2551.0,2550.9,21.98340906]
[1748095586321,7.16329719,2551.0,2550.9,25.81415081]
[1748095586665,5.84286179,2551.0,2550.9,25.81415081]
[1748095586969,1.55715305,2551.0,2550.9,25.81415081]
[1748095587147,5.47718441,2551.0,2550.9,10.14415081]
[1748095587321,5.47718441,2551.0,2550.9,31.25174175]
[1748095588035,5.47718441,2551.0,2550.9,29.93997819]
[1748095588237,6.41689301,2551.0,2550.9,29.93997819]
[1748095588467,6.41689301,2551.0,2550.9,37.93997819]
[1748095588762,6.41689301,2551.0,2550.9,18.18897819]
[1748095589469,4.85973996,2551.0,2550.9,26.18897819]
[1748095590764,4.85973996,2551.0,2550.9,10.51897819]
[1748095590934,6.37643996,2551.0,2550.9,37.93997819]
[1748095591141,6.74215995,2551.0,2550.9,37.93997819]
[1748095591646,5.22545995,2551.0,2550.9,37.93997819]
[1748095591824,4.85973996,2551.0,2550.9,37.93997819]
[1748095593462,4.85973996,2551.0,2550.9,26.18897819]
[1748095593664,4.85973996,2551.0,2550.6,16.927]
[1748095593665,3.92049241,2550.7,2550.6,16.927]
[1748095593865,3.92049241,2550.7,2550.6,32.52]
[1748095594379,3.92126107,2550.2,2550.1,3.83074175]
[1748095594530,3.92126107,2550.2,2550.1,27.42374175]
[1748095596032,3.92126107,2550.2,2550.1,11.83074175]
[1748095596330,3.92126107,2550.2,2550.1,27.42374175]
[1748095596763,3.92126107,2550.2,2550.1,23.593]
[1748095597092,3.92172242,2549.9,2549.8,20.75274175]
[1748095597377,3.92172242,2549.9,2549.8,56.09874175]
[1748095597766,3.92172242,2549.9,2549.8,28.75274175]
[1748095597931,5.43842242,2549.9,2549.8,56.09974175]
[1748095598273,5.43842242,2549.9,2549.8,44.34774175]
[1748095601565,6.76656522,2549.9,2549.8,40.518]
[1748095602373,6.76656522,2549.9,2549.8,56.10174175]
[1748095602374,3.92172242,2549.9,2549.8,56.10174175]
[1748095610107,3.92172242,2549.9,2549.8,44.34874175]
[1748095610271,3.92172242,2549.9,2549.8,56.10374175]
[1748095610595,3.92172242,2549.9,2549.8,28.75274175]
[1748095610790,3.92172242,2549.9,2549.8,44.35174175]
[1748095613402,3.92172242,2549.9,2549.8,43.04546527]
[1748095620817,3.92172242,2549.9,2549.8,54.80146527]
[1748095621175,1.4164,2550.4,2549.9,8.0]
[1748095621384,3.92095357,2550.4,2550.3,11.83074175]
[1748095621586,3.9208681,2550.5,2550.4,8.0]
[1748095625326,5.27175357,2550.4,2550.3,3.83074175]
[1748095625534,5.27175357,2550.4,2550.3,27.26374175]
[1748095625732,5.27175357,2550.4,2550.3,11.83074175]
[1748095625894,5.27175357,2550.4,2550.3,23.433]
[1748095627137,5.63748918,2550.4,2550.3,23.433]
[1748095627297,7.06380651,2550.4,2550.3,23.433]
[1748095627494,7.06364452,2550.4,2550.3,23.433]
[1748095628550,7.06353129,2550.4,2550.3,23.433]
[1748095628850,8.63127565,2550.4,2550.3,23.433]
[1748095629500,8.6312604,2550.4,2550.3,23.433]
[1748095630011,8.6312604,2550.4,2550.3,15.433]
[1748095630499,8.63124969,2550.4,2550.3,15.433]
[1748095632354,8.26581526,2550.4,2550.3,15.433]
[1748095632678,8.63126876,2550.4,2550.3,15.433]
[1748095633216,8.63125016,2550.4,2550.3,15.433]
[1748095634037,3.92141484,2550.1,2550.0,8.5309111]
[1748095634254,4.84076501,2550.1,2550.0,23.9639111]
[1748095635452,3.92128682,2550.2,2550.0,19.11924934]
[1748095635604,3.92141484,2550.1,2550.0,19.11924934]
[1748095635808,3.92141484,2550.1,2550.0,38.87424934]
[1748095636762,5.4891592,2550.1,2550.0,38.87424934]
[1748095637476,2.08330351,2550.6,2550.1,8.0]
[1748095637695,3.92111518,2550.3,2550.1,8.0]
[1748095637849,3.92111518,2550.3,2550.2,1.84312467]
[1748095640986,3.92126107,2550.2,2550.1,8.0]
[1748095641189,3.92111518,2550.3,2550.1,8.0]
[1748095641190,3.92111518,2550.3,2550.2,9.84312467]
[1748095643806,3.92111518,2550.3,2550.2,8.0]
[1748095644017,5.23465656,2550.3,2550.2,8.0]
[1748095644205,3.92111518,2550.3,2550.2,8.0]
[1748095646124,3.92126107,2550.2,2550.1,19.26614908]
[1748095646897,3.92126107,2550.2,2550.1,3.83314908]
[1748095647091,3.92126107,2550.2,2550.1,19.26514908]
[1748095648431,3.92126107,2550.2,2550.1,27.26514908]
[1748095652710,5.49402068,2550.2,2550.1,27.26514908]
[1748095655132,7.46666576,2550.2,2550.1,27.26514908]
[1748095655653,7.46666576,2550.2,2550.1,23.432]
[1748095655819,7.46666576,2550.2,2550.1,27.26514908]
[1748095665772,7.46666576,2550.2,2550.1,25.27456016]
[1748095666080,3.54540469,2550.2,2550.1,25.27456016]
[1748095666280,3.54540469,2550.2,2550.1,25.71145367]
[1748095666470,3.54540469,2550.2,2550.1,25.27456016]
[1748095667987,3.54540469,2550.2,2550.1,25.65007309]
[1748095668288,3.92111117,2550.3,2550.2,8.0]
[1748095668788,3.92096696,2550.4,2550.2,8.0]
[1748095668953,1.97264508,2550.5,2550.3,1.84256016]
[1748095669154,1.97264508,2550.5,2550.4,19.754]
[1748095669790,5.89344492,2550.5,2550.4,19.754]
[1748095670798,1.97264508,2550.5,2550.4,19.754]
[1748095671598,5.89330875,2550.6,2550.5,8.0]
[1748095671768,5.89330875,2550.6,2550.5,9.84256016]
[1748095672167,1.97264508,2550.6,2550.5,9.84256016]
[1748095674411,1.97264508,2550.6,2550.5,1.84256016]
[1748095674612,3.92064612,2550.6,2550.5,25.09256016]
[1748095676981,3.92064612,2550.6,2550.5,36.84556016]
[1748095678246,3.92056688,2550.7,2550.6,8.0]
[1748095678808,1.97264508,2550.8,2550.6,8.0]
[1748095679043,1.97264508,2550.8,2550.7,1.84256016]
[1748095679734,5.89298379,2550.8,2550.7,1.84256016]
[1748095680916,5.89298379,2550.8,2550.7,36.84256016]
[1748095681316,3.92033871,2550.8,2550.7,36.84256016]
[1748095685343,3.92033871,2550.8,2550.7,9.84256016]
[1748095685553,5.91519208,2550.8,2550.7,25.03056016]
[1748095685756,5.13113871,2550.8,2550.7,25.03056016]
[1748095685943,3.92033871,2550.8,2550.7,25.03056016]
[1748095686256,3.92033871,2550.8,2550.7,36.78256016]
[1748095686463,3.92024946,2550.9,2550.8,8.0]
[1748095687737,1.2108,2550.8,2550.1,16.925]
[1748095687941,5.13113871,2550.8,2550.7,1.84256016]
[1748095688341,5.13113871,2550.8,2550.7,25.03056016]
[1748095690048,8.6753561,2550.8,2550.7,25.03056016]
[1748095690964,8.6753561,2550.8,2550.7,23.71867887]
[1748095693605,7.4645561,2550.8,2550.7,23.71867887]
[1748095694803,3.92033871,2550.8,2550.7,23.71867887]
[1748095699388,1.97264508,2551.0,2550.7,23.71867887]
[1748095699593,5.89267644,2551.0,2550.9,11.68512032]
[1748095700916,5.89267644,2551.0,2550.9,9.84256016]
[1748095702722,3.92003136,2551.0,2550.9,9.84256016]
[1748095703616,3.92003136,2551.0,2550.9,26.76556016]
[1748095704799,3.92003136,2551.0,2550.9,53.70456016]
[1748095705110,5.49274312,2551.0,2550.9,53.70456016]
[1748095709737,5.49274312,2551.0,2550.9,26.76556016]
[1748095709924,5.49274312,2551.0,2550.9,53.70456016]
[1748095711500,7.59161549,2551.0,2550.9,53.70456016]
[1748095711838,7.59161549,2551.0,2550.9,52.01812789]
[1748095713243,10.15796873,2551.0,2550.9,52.01812789]
[1748095713608,10.15796873,2551.0,2550.9,52.5490628]
[1748095713808,10.15796873,2551.0,2550.9,25.6100628]
[1748095714006,6.23793737,2551.0,2550.9,54.94062296]
[1748095714529,6.23793737,2551.0,2550.9,55.31583397]
[1748095715251,10.15796873,2551.0,2550.9,55.31583397]
[1748095717728,7.59161549,2551.0,2550.9,55.31583397]
[1748095719561,3.67158413,2551.0,2550.9,56.45956311]
[1748095719738,3.67158413,2551.0,2550.9,54.76583397]
[1748095723465,7.59161549,2551.0,2550.9,54.76583397]
[1748095723647,7.59161549,2551.0,2550.9,52.91727381]
[1748095724350,10.15868073,2551.0,2550.9,52.91727381]
[1748095724927,10.15868073,2551.0,2550.9,46.07277117]
[1748095724928,11.67751738,2551.0,2550.9,46.07277117]
[1748095725264,11.67751738,2551.0,2550.9,54.07277117]
[1748095726082,11.67751738,2551.0,2550.9,53.69756016]
[1748095726359,11.67751738,2551.0,2550.9,26.76556016]
[1748095726563,9.11045214,2551.0,2550.9,53.69756016]
[1748095727162,9.11045214,2551.0,2550.9,8.15613544]
[1748095727354,9.11045214,2551.0,2550.9,52.00813544]
[1748095728970,7.59161549,2551.0,2550.9,52.00813544]
[1748095730166,7.59161549,2551.0,2550.9,25.07613544]
[1748095730371,7.59161549,2551.0,2550.9,52.00813544]
[1748095730570,7.59161549,2551.0,2550.9,25.07613544]
[1748095730737,7.59161549,2551.0,2550.9,52.00813544]
[1748095731246,7.59161549,2551.0,2550.9,25.07613544]
[1748095731447,7.59161549,2551.0,2550.9,51.78956234]
[1748095733378,11.33022248,2551.0,2550.9,51.78956234]
[1748095734762,11.33022248,2551.0,2550.9,50.4779318]
[1748095737284,7.59161549,2551.0,2550.9,50.4779318]
[1748095737583,7.59161549,2551.0,2550.9,50.85340825]
[1748095739240,15.79821145,2551.0,2550.9,50.85340825]
[1748095740397,19.04790118,2551.0,2550.9,37.26184809]
[1748095741247,16.96511145,2551.0,2550.9,37.26184809]
[1748095741596,16.96511145,2551.0,2550.9,36.88637164]
[1748095741887,16.96511145,2551.0,2550.9,34.82522694]
[1748095742099,16.96511145,2551.0,2550.9,32.103]
[1748095743021,11.87818009,2551.0,2550.9,32.103]
[1748095743149,14.65057447,2551.0,2550.9,32.103]
[1748095743476,3.92018503,2550.9,2550.8,1.84256016]
[1748095743697,3.92095171,2550.5,2550.3,0.46797057]
[1748095743859,3.92079984,2550.5,2550.4,25.02556016]
[1748095744198,3.92079984,2550.5,2550.4,36.77656016]
[1748095745098,3.92079984,2550.5,2550.4,19.90714634]
[1748095745606,3.92079984,2550.5,2550.4,20.28259494]
[1748095746089,10.32242959,2550.5,2550.4,20.28259494]
[1748095747263,12.81693971,2550.5,2550.4,8.53159494]
[1748095747469,18.34875544,2550.5,2550.4,20.28259494]
[1748095747988,18.34875544,2550.5,2550.4,19.90714634]
[1748095749333,18.34875544,2550.5,2550.4,52.00014634]
[1748095749504,12.81693971,2550.5,2550.4,52.00014634]
[1748095750408,12.81693971,2550.5,2550.4,24.922]
[1748095750609,12.81693971,2550.5,2550.4,25.01356016]
[1748095751668,13.18336214,2550.5,2550.4,25.01356016]
[1748095752067,13.18336214,2550.5,2550.4,22.38935999]
[1748095752482,12.81693971,2550.5,2550.4,22.38935999]
[1748095753627,5.07540732,2550.3,2550.2,18.76556016]
[1748095753793,5.07540732,2550.3,2550.2,32.095]
[1748095754140,5.44179017,2550.3,2550.2,32.095]
[1748095754308,5.44179017,2550.3,2550.2,33.93756016]
[1748095754690,5.44180112,2550.3,2550.2,33.93756016]
[1748095754935,8.89542894,2550.3,2550.2,33.93756016]
[1748095755712,20.22347825,2550.3,2550.2,33.93756016]
[1748095756038,20.22347825,2550.3,2550.2,15.70431972]
[1748095757802,19.85708393,2550.3,2550.2,15.70431972]
[1748095759314,19.26287297,2550.3,2550.2,27.45831972]
[1748095760533,15.80924515,2550.3,2550.2,27.45831972]
[1748095760844,14.65494515,2550.3,2550.2,35.45831972]
[1748095761138,10.73383783,2550.3,2550.2,35.45831972]
[1748095761338,14.65494515,2550.3,2550.2,35.45831972]
[1748095761847,14.65494515,2550.3,2550.2,22.92263385]
[1748095762914,15.83473132,2550.3,2550.2,34.67663385]
[1748095763368,15.83473132,2550.3,2550.2,32.98991891]
[1748095765172,10.32273707,2550.3,2550.2,32.98991891]
[1748095765568,10.32273707,2550.3,2550.2,28.77056016]
[1748095767571,10.32273707,2550.3,2550.2,36.77056016]
[1748095767735,9.72373708,2550.3,2550.2,36.77056016]
[1748095769238,8.46713708,2550.3,2550.2,36.77056016]
[1748095770810,8.46713708,2550.3,2550.2,37.14534686]
[1748095771783,8.46713708,2550.3,2550.2,24.61010048]
[1748095773093,8.46713708,2550.3,2550.2,35.98931378]
[1748095773393,12.79934516,2550.3,2550.2,35.98931378]
[1748095775094,12.79934516,2550.3,2550.2,9.43636633]
[1748095775253,12.79934516,2550.3,2550.2,24.61036633]
[1748095775592,12.79934516,2550.3,2550.2,36.36436633]
[1748095776373,8.46713708,2550.3,2550.2,35.98931378]
[1748095776578,8.46713708,2550.3,2550.2,33.92757555]
[1748095779111,8.46713708,2550.3,2550.2,28.77056016]
[1748095779269,10.31439874,2550.3,2550.2,28.77056016]
[1748095780804,15.24081778,2550.3,2550.2,17.01656016]
[1748095780992,15.24081778,2550.3,2550.2,36.77056016]
[1748095781308,15.24081778,2550.3,2550.2,35.9740703]
[1748095782495,16.35401778,2550.3,2550.2,24.2200703]
[1748095783220,11.42759874,2550.3,2550.2,24.2200703]
[1748095783627,11.42759874,2550.3,2550.2,22.90800162]
[1748095787527,11.42759874,2550.3,2550.2,17.00156016]
[1748095788724,17.53526201,2550.3,2550.2,17.00156016]
[1748095789529,17.53526201,2550.3,2550.2,25.00156016]
[1748095789700,17.53526201,2550.3,2550.2,24.21993916]
[1748095795264,17.53526201,2550.3,2550.2,22.53296188]
[1748095796275,11.42759874,2550.3,2550.2,17.00156016]
[1748095798835,7.50649142,2550.3,2550.2,17.00256016]
[1748095799039,7.50649142,2550.3,2549.8,8.0]
[1748095799281,9.58033708,2550.3,2550.2,1.84256016]
[1748095800270,11.78411854,2550.3,2550.2,1.84256016]
[1748095800454,15.70522586,2550.3,2550.2,1.84256016]
[1748095800655,1.1255,2550.1,2550.0,1.84256016]
[1748095800849,7.01079353,2550.1,2550.0,17.00256016]
[1748095801054,3.92126107,2550.2,2550.0,18.84512032]
[1748095801055,3.92126823,2550.2,2550.0,18.84512032]
[1748095801282,10.67091854,2550.3,2550.0,18.84512032]
[1748095801484,14.59209065,2550.3,2550.2,1.84256016]
[1748095803269,14.59209065,2550.3,2550.2,13.59656016]
[1748095803594,10.67091854,2550.3,2550.2,21.59656016]
[1748095804107,4.54602976,2550.3,2550.2,21.59656016]
[1748095804308,4.54602976,2550.3,2550.2,21.97225668]
[1748095804917,8.46713708,2550.3,2550.2,21.97225668]
[1748095805065,7.40213708,2550.3,2550.2,21.97225668]
[1748095805259,7.30213708,2550.3,2550.2,21.97225668]
[1748095806084,2.66302976,2550.3,2550.2,21.97225668]
[1748095807054,2.66302976,2550.3,2550.2,7.59461018]
[1748095807301,6.58413708,2550.3,2550.2,7.59461018]
[1748095807604,2.66302976,2550.3,2550.2,7.59461018]
[1748095808251,2.66302976,2550.3,2550.2,19.34861018]
[1748095810901,6.58413708,2550.3,2550.2,19.34861018]
[1748095811065,2.66302976,2550.3,2550.2,19.34861018]
[1748095811703,2.66302976,2550.3,2550.2,13.97225668]
[1748095813419,6.58413708,2550.3,2550.2,13.97225668]
[1748095813729,6.58413708,2550.3,2550.2,20.28558651]
[1748095815518,6.58413708,2550.3,2550.2,7.75040602]
[1748095816326,6.58413708,2550.3,2550.2,1.84256016]
[1748095816788,6.58413708,2550.3,2550.2,13.59556016]